[Event "Late-Titled-Tuesday-Blitz-June-04-2024"]
[Site "Chess.com"]
[Date "2024.06.04"]
[Round "2"]
[White "Alphafischer2019"]
[Black "talaicito"]
[Result "1-0"]
[WhiteElo "2643"]
[BlackElo "2184"]
[TimeControl "180+1"]
[EndTime "14:16:36 PDT"]
[Termination "Alphafischer2019 won on time"]

1. Nf3 {[%clk 0:03:00.9]} 1... f5 {[%clk 0:02:59.5]} 2. d4 {[%clk 0:02:55.9]}
2... Nf6 {[%clk 0:03:00]} 3. Bf4 {[%clk 0:02:56.2]} 3... e6 {[%clk 0:02:59.4]}
4. e3 {[%clk 0:02:56.3]} 4... g6 {[%clk 0:02:59.8]} 5. c4 {[%clk 0:02:52.8]}
5... Bg7 {[%clk 0:03:00.3]} 6. Nc3 {[%clk 0:02:53]} 6... O-O {[%clk 0:03:00.8]}
7. Be2 {[%clk 0:02:52.4]} 7... d6 {[%clk 0:03:01.3]} 8. h3 {[%clk 0:02:52.3]}
8... Nc6 {[%clk 0:03:01.8]} 9. O-O {[%clk 0:02:52.5]} 9... Qe7 {[%clk
0:03:01.4]} 10. Bh2 {[%clk 0:02:47.5]} 10... Nh5 {[%clk 0:02:47.6]} 11. Re1
{[%clk 0:02:41.7]} 11... f4 {[%clk 0:02:44.8]} 12. exf4 {[%clk 0:02:36]} 12...
Nxf4 {[%clk 0:02:44.2]} 13. Bf1 {[%clk 0:02:36.6]} 13... Qf7 {[%clk 0:02:27.1]}
14. d5 {[%clk 0:02:04.5]} 14... Ne5 {[%clk 0:02:20.4]} 15. dxe6 {[%clk
0:01:21.4]} 15... Nxh3+ {[%clk 0:02:10.4]} 16. Kh1 {[%clk 0:01:04.9]} 16...
Nxf2+ {[%clk 0:02:09.5]} 17. Kg1 {[%clk 0:01:05.5]} 17... Nh3+ {[%clk
0:01:10.4]} 18. Kh1 {[%clk 0:01:04.2]} 18... Nxf3 {[%clk 0:00:54.2]} 19. exf7+
{[%clk 0:01:01.5]} 19... Rxf7 {[%clk 0:00:50.1]} 20. gxh3 {[%clk 0:01:01.1]}
20... Nxe1 {[%clk 0:00:44.5]} 21. Qxe1 {[%clk 0:01:02]} 21... Bd7 {[%clk
0:00:43.6]} 22. Bg2 {[%clk 0:01:01.8]} 22... Re8 {[%clk 0:00:43.6]} 23. Qd2
{[%clk 0:00:59.6]} 23... Rfe7 {[%clk 0:00:34.9]} 24. Rf1 {[%clk 0:00:56.1]}
24... b6 {[%clk 0:00:20.3]} 25. Nd5 {[%clk 0:00:53.4]} 25... Re2 {[%clk
0:00:17.8]} 26. Qg5 {[%clk 0:00:48.6]} 26... Bc6 {[%clk 0:00:08.9]} 27. Ne7+
{[%clk 0:00:44.9]} 27... R8xe7 {[%clk 0:00:07.1]} 28. Bxc6 {[%clk 0:00:45.8]}
1-0

[Event "Late-Titled-Tuesday-Blitz-June-04-2024"]
[Site "Chess.com"]
[Date "2024.06.04"]
[Round "2"]
[White "DirtyKabab"]
[Black "Dedic8"]
[Result "0-1"]
[WhiteElo "2584"]
[BlackElo "2922"]
[TimeControl "180+1"]
[EndTime "14:16:37 PDT"]
[Termination "Dedic8 won on time"]

1. e4 {[%clk 0:03:00.9]} 1... c5 {[%clk 0:02:48]} 2. Nf3 {[%clk 0:03:00.3]} 2...
d6 {[%clk 0:02:46.1]} 3. d4 {[%clk 0:03:00.3]} 3... cxd4 {[%clk 0:02:47]} 4.
Qxd4 {[%clk 0:02:59.9]} 4... Nc6 {[%clk 0:02:46.6]} 5. Qe3 {[%clk 0:02:58.4]}
5... Nf6 {[%clk 0:02:46]} 6. h3 {[%clk 0:02:58.5]} 6... g6 {[%clk 0:02:46.4]} 7.
Be2 {[%clk 0:02:56.1]} 7... Bg7 {[%clk 0:02:46.7]} 8. O-O {[%clk 0:02:56.6]}
8... O-O {[%clk 0:02:47.2]} 9. Rd1 {[%clk 0:02:56.8]} 9... Qc7 {[%clk
0:02:44.8]} 10. a3 {[%clk 0:02:54.4]} 10... a6 {[%clk 0:02:44.9]} 11. Nc3 {[%clk
0:02:41.7]} 11... b5 {[%clk 0:02:44.7]} 12. Bd2 {[%clk 0:02:33.1]} 12... Bb7
{[%clk 0:02:44.5]} 13. Qf4 {[%clk 0:02:26]} 13... Na5 {[%clk 0:02:41.3]} 14. Qh4
{[%clk 0:01:50.1]} 14... Nc4 {[%clk 0:02:36.8]} 15. Bxc4 {[%clk 0:01:46.3]}
15... Qxc4 {[%clk 0:02:36.1]} 16. Bh6 {[%clk 0:01:39]} 16... Rac8 {[%clk
0:02:21.6]} 17. Ng5 {[%clk 0:01:26.9]} 17... a5 {[%clk 0:01:52.6]} 18. Rd3
{[%clk 0:00:57.8]} 18... b4 {[%clk 0:01:32.4]} 19. axb4 {[%clk 0:00:58.7]} 19...
axb4 {[%clk 0:01:32.5]} 20. b3 {[%clk 0:00:49.4]} 20... Qc5 {[%clk 0:01:10.3]}
21. Na4 {[%clk 0:00:29.5]} 21... Qxc2 {[%clk 0:01:10.1]} 22. Rf3 {[%clk
0:00:29.7]} 22... Nxe4 {[%clk 0:00:46.7]} 23. Bxg7 {[%clk 0:00:10.1]} 23... Nxg5
{[%clk 0:00:46.3]} 24. Qxg5 {[%clk 0:00:10.3]} 24... Kxg7 {[%clk 0:00:46.9]} 25.
Re3 {[%clk 0:00:08.1]} 25... e5 {[%clk 0:00:45.3]} 26. Nb6 {[%clk 0:00:02.1]}
26... Rc3 {[%clk 0:00:39.3]} 0-1

[Event "Late-Titled-Tuesday-Blitz-June-04-2024"]
[Site "Chess.com"]
[Date "2024.06.04"]
[Round "2"]
[White "jucAxx"]
[Black "BashiqChess"]
[Result "1-0"]
[WhiteElo "2278"]
[BlackElo "2473"]
[TimeControl "180+1"]
[EndTime "14:16:38 PDT"]
[Termination "jucAxx won on time"]

1. e4 {[%clk 0:03:00.9]} 1... c6 {[%clk 0:02:59.9]} 2. d4 {[%clk 0:03:00.5]}
2... d5 {[%clk 0:03:00.2]} 3. f3 {[%clk 0:02:59.5]} 3... dxe4 {[%clk 0:02:57.9]}
4. fxe4 {[%clk 0:02:58.8]} 4... e5 {[%clk 0:02:58.6]} 5. Nf3 {[%clk 0:02:56.8]}
5... Bg4 {[%clk 0:02:55.6]} 6. c3 {[%clk 0:02:54.4]} 6... Nd7 {[%clk 0:02:55.2]}
7. Be2 {[%clk 0:02:52.8]} 7... Bd6 {[%clk 0:02:40]} 8. Qb3 {[%clk 0:02:49.1]}
8... Ngf6 {[%clk 0:02:31.9]} 9. Qxb7 {[%clk 0:02:45.3]} 9... O-O {[%clk
0:01:54.1]} 10. h3 {[%clk 0:02:32.4]} 10... Bh5 {[%clk 0:01:40.5]} 11. Qxc6
{[%clk 0:02:30.3]} 11... Qe7 {[%clk 0:01:39.6]} 12. Nbd2 {[%clk 0:02:28.3]}
12... Rfc8 {[%clk 0:01:33.3]} 13. Qb7 {[%clk 0:02:25.2]} 13... Rab8 {[%clk
0:01:21.6]} 14. Qxa7 {[%clk 0:02:24.6]} 14... Rc7 {[%clk 0:01:09.8]} 15. Qa4
{[%clk 0:02:22.3]} 15... exd4 {[%clk 0:01:09]} 16. Qxd4 {[%clk 0:02:20]} 16...
Bg3+ {[%clk 0:00:43.1]} 17. Kf1 {[%clk 0:02:19.7]} 17... Rd8 {[%clk 0:00:39.2]}
18. Qe3 {[%clk 0:02:18.1]} 18... Nc5 {[%clk 0:00:37.9]} 19. Qg5 {[%clk
0:02:01.8]} 19... Ncxe4 {[%clk 0:00:13.5]} 20. Nxe4 {[%clk 0:01:54.7]} 20...
Nxe4 {[%clk 0:00:14.4]} 21. Qxh5 {[%clk 0:01:41]} 21... Rcd7 {[%clk 0:00:12]}
22. Nd4 {[%clk 0:01:38.8]} 22... Qf6+ {[%clk 0:00:09.2]} 23. Qf3 {[%clk
0:01:38.2]} 23... Qg6 {[%clk 0:00:06.8]} 24. Bd3 {[%clk 0:01:23.8]} 24... f5
{[%clk 0:00:05.8]} 25. Nxf5 {[%clk 0:01:07.3]} 25... Kh8 {[%clk 0:00:02]} 26.
Qxe4 {[%clk 0:01:05.3]} 26... Rxd3 {[%clk 0:00:01.9]} 27. Nxg3 {[%clk
0:00:56.4]} 27... Qxg3 {[%clk 0:00:01.7]} 28. Bf4 {[%clk 0:00:46.2]} 1-0

[Event "Late-Titled-Tuesday-Blitz-June-04-2024"]
[Site "Chess.com"]
[Date "2024.06.04"]
[Round "2"]
[White "fpawn"]
[Black "moro182"]
[Result "1/2-1/2"]
[WhiteElo "2417"]
[BlackElo "2893"]
[TimeControl "180+1"]
[EndTime "14:16:39 PDT"]
[Termination "Game drawn by repetition"]

1. e4 {[%clk 0:03:00.9]} 1... g6 {[%clk 0:03:00.9]} 2. d4 {[%clk 0:03:00.2]}
2... Bg7 {[%clk 0:03:01.3]} 3. Nc3 {[%clk 0:03:00.7]} 3... a6 {[%clk 0:03:01.4]}
4. f4 {[%clk 0:03:00.2]} 4... d5 {[%clk 0:03:01.2]} 5. e5 {[%clk 0:02:59.9]}
5... h5 {[%clk 0:03:01.8]} 6. Nf3 {[%clk 0:02:59.7]} 6... Bg4 {[%clk 0:03:02]}
7. h3 {[%clk 0:02:57.4]} 7... Bxf3 {[%clk 0:03:02.4]} 8. Qxf3 {[%clk 0:02:57.4]}
8... e6 {[%clk 0:03:03.3]} 9. Be3 {[%clk 0:02:57.1]} 9... h4 {[%clk 0:03:03.4]}
10. Bf2 {[%clk 0:02:54.4]} 10... Ne7 {[%clk 0:03:03.5]} 11. Bd3 {[%clk
0:02:53.2]} 11... Nbc6 {[%clk 0:03:03.7]} 12. Nd1 {[%clk 0:02:52.3]} 12... Nb4
{[%clk 0:03:02.1]} 13. O-O {[%clk 0:02:49.5]} 13... Nxd3 {[%clk 0:03:01.8]} 14.
Qxd3 {[%clk 0:02:49.7]} 14... Nf5 {[%clk 0:03:02.2]} 15. Ne3 {[%clk 0:02:48.5]}
15... Bf8 {[%clk 0:03:02.6]} 16. c4 {[%clk 0:02:33.8]} 16... Nxe3 {[%clk
0:03:01.6]} 17. Bxe3 {[%clk 0:02:33.1]} 17... dxc4 {[%clk 0:03:02.4]} 18. Qxc4
{[%clk 0:02:33]} 18... c6 {[%clk 0:03:02.8]} 19. a4 {[%clk 0:02:28.6]} 19... a5
{[%clk 0:02:59.4]} 20. Rfd1 {[%clk 0:02:20.1]} 20... Bb4 {[%clk 0:02:57.8]} 21.
Bd2 {[%clk 0:02:19]} 21... Qb6 {[%clk 0:02:53.8]} 22. Bxb4 {[%clk 0:02:17.4]}
22... axb4 {[%clk 0:02:52]} 23. b3 {[%clk 0:02:17.3]} 23... Ke7 {[%clk
0:02:43.5]} 24. Qc5+ {[%clk 0:02:15.3]} 24... Qxc5 {[%clk 0:02:37]} 25. dxc5
{[%clk 0:02:15.4]} 25... Ra5 {[%clk 0:02:34.1]} 26. Rac1 {[%clk 0:02:14.2]}
26... Rd8 {[%clk 0:02:31.6]} 27. Rxd8 {[%clk 0:02:13.5]} 27... Kxd8 {[%clk
0:02:32]} 28. Rc4 {[%clk 0:02:12.3]} 28... Kc7 {[%clk 0:02:31.7]} 29. Kf2 {[%clk
0:02:12.3]} 29... Ra8 {[%clk 0:02:31.4]} 30. Rxb4 {[%clk 0:02:08.8]} 30... Rd8
{[%clk 0:02:31.9]} 31. Ke2 {[%clk 0:02:09]} 31... Rd5 {[%clk 0:02:29.7]} 32. Rc4
{[%clk 0:02:09]} 32... g5 {[%clk 0:02:30.1]} 33. b4 {[%clk 0:02:04.1]} 33...
gxf4 {[%clk 0:02:28.7]} 34. Rxf4 {[%clk 0:02:03.9]} 34... Rxe5+ {[%clk
0:02:29.2]} 35. Kf3 {[%clk 0:01:57.4]} 35... f5 {[%clk 0:02:28.8]} 36. Rxh4
{[%clk 0:01:56.5]} 36... Rd5 {[%clk 0:02:28.3]} 37. Rh7+ {[%clk 0:01:52.7]}
37... Kc8 {[%clk 0:02:28.3]} 38. h4 {[%clk 0:01:43.6]} 38... e5 {[%clk
0:02:26.7]} 39. h5 {[%clk 0:01:43.3]} 39... Rd3+ {[%clk 0:02:24.8]} 40. Ke2
{[%clk 0:01:43.3]} 40... Rd4 {[%clk 0:02:20.1]} 41. h6 {[%clk 0:01:42.8]} 41...
Rh4 {[%clk 0:02:19.1]} 42. g3 {[%clk 0:01:40.7]} 42... Rh3 {[%clk 0:02:12.7]}
43. Kf2 {[%clk 0:01:39.4]} 43... e4 {[%clk 0:02:03.5]} 44. Rf7 {[%clk
0:01:36.6]} 44... Rxh6 {[%clk 0:01:59.4]} 45. Rxf5 {[%clk 0:01:36.6]} 45... Rh2+
{[%clk 0:01:57.2]} 46. Ke3 {[%clk 0:01:36]} 46... Rb2 {[%clk 0:01:57.8]} 47.
Kxe4 {[%clk 0:01:33.1]} 47... Rxb4+ {[%clk 0:01:57.5]} 48. Ke5 {[%clk
0:01:30.1]} 48... Rxa4 {[%clk 0:01:57.5]} 49. Rf8+ {[%clk 0:01:28.3]} 49... Kd7
{[%clk 0:01:56.9]} 50. Rf7+ {[%clk 0:01:28.2]} 50... Kc8 {[%clk 0:01:57.5]} 51.
Rf8+ {[%clk 0:01:23.1]} 51... Kc7 {[%clk 0:01:57.5]} 52. Rf7+ {[%clk 0:01:23.3]}
52... Kb8 {[%clk 0:01:57.4]} 53. Rf8+ {[%clk 0:01:23.2]} 53... Ka7 {[%clk
0:01:57.2]} 54. Rf4 {[%clk 0:01:19.5]} 54... Ra5 {[%clk 0:01:56.7]} 55. Kd6
{[%clk 0:01:18.9]} 55... Ra3 {[%clk 0:01:55.3]} 56. g4 {[%clk 0:01:15.6]} 56...
Rd3+ {[%clk 0:01:53]} 57. Kc7 {[%clk 0:01:15.1]} 57... Ka6 {[%clk 0:01:50.4]}
58. Rb4 {[%clk 0:01:01.9]} 58... Rd5 {[%clk 0:01:48.1]} 59. Rb6+ {[%clk
0:01:00.6]} 59... Ka5 {[%clk 0:01:48]} 60. Rxb7 {[%clk 0:01:00.2]} 60... Rxc5
{[%clk 0:01:48.3]} 61. Rb6 {[%clk 0:00:58.9]} 61... Rg5 {[%clk 0:01:45.2]} 62.
Rxc6 {[%clk 0:00:59.1]} 62... Kb5 {[%clk 0:01:42.6]} 63. Rf6 {[%clk 0:00:55.9]}
63... Rxg4 {[%clk 0:01:41.2]} 64. Kd6 {[%clk 0:00:51.9]} 64... Kc4 {[%clk
0:01:41.2]} 65. Rf5 {[%clk 0:00:50.7]} 65... Kd4 {[%clk 0:01:41.4]} 66. Ke6
{[%clk 0:00:50.8]} 66... Rg6+ {[%clk 0:01:40.6]} 67. Kf7 {[%clk 0:00:50.6]}
67... Ra6 {[%clk 0:01:40.4]} 68. Rb5 {[%clk 0:00:50.5]} 68... Ke4 {[%clk
0:01:40.9]} 69. Ke7 {[%clk 0:00:50]} 69... Ra7+ {[%clk 0:01:40.3]} 70. Kd6
{[%clk 0:00:49.7]} 70... Kd4 {[%clk 0:01:41]} 71. Rh5 {[%clk 0:00:49.1]} 71...
Ra6+ {[%clk 0:01:40.9]} 72. Kc7 {[%clk 0:00:49.1]} 72... Rg6 {[%clk 0:01:41.4]}
73. Kd7 {[%clk 0:00:49]} 73... Rg7+ {[%clk 0:01:41.5]} 74. Ke6 {[%clk
0:00:49.1]} 74... Rg6+ {[%clk 0:01:42.2]} 75. Ke7 {[%clk 0:00:49.3]} 75... Rg7+
{[%clk 0:01:42.4]} 76. Ke6 {[%clk 0:00:49.6]} 76... Rg6+ {[%clk 0:01:43]} 77.
Ke7 {[%clk 0:00:50]} 77... Rg7+ {[%clk 0:01:43.7]} 78. Ke6 {[%clk 0:00:50.1]}
1/2-1/2

[Event "Late-Titled-Tuesday-Blitz-June-04-2024"]
[Site "Chess.com"]
[Date "2024.06.04"]
[Round "2"]
[White "Bkmzzzzz"]
[Black "Lavandum24"]
[Result "1-0"]
[WhiteElo "2419"]
[BlackElo "1855"]
[TimeControl "180+1"]
[EndTime "14:16:39 PDT"]
[Termination "Bkmzzzzz won on time"]

1. e4 {[%clk 0:02:57.6]} 1... Nc6 {[%clk 0:02:59.6]} 2. Nf3 {[%clk 0:02:55.7]}
2... d5 {[%clk 0:02:58.2]} 3. exd5 {[%clk 0:02:56.6]} 3... Qxd5 {[%clk
0:02:58.1]} 4. Nc3 {[%clk 0:02:54.8]} 4... Qa5 {[%clk 0:02:54.2]} 5. Bc4 {[%clk
0:02:52.8]} 5... Bg4 {[%clk 0:02:51.2]} 6. h3 {[%clk 0:02:52.4]} 6... Bh5 {[%clk
0:02:39.8]} 7. g4 {[%clk 0:02:46.5]} 7... Bg6 {[%clk 0:02:36.8]} 8. d3 {[%clk
0:02:47.1]} 8... O-O-O {[%clk 0:02:32.9]} 9. Bd2 {[%clk 0:02:46.8]} 9... e5
{[%clk 0:01:57.8]} 10. Qe2 {[%clk 0:02:45]} 10... Nd4 {[%clk 0:01:33.3]} 11.
Nxd4 {[%clk 0:02:42.9]} 11... exd4 {[%clk 0:01:28.2]} 12. Nd5 {[%clk 0:02:27.6]}
12... Qc5 {[%clk 0:01:19]} 13. Bb4 {[%clk 0:02:14.8]} 13... Qc6 {[%clk
0:01:17.1]} 14. Bxf8 {[%clk 0:02:14.2]} 14... Rxf8 {[%clk 0:01:13]} 15. O-O-O
{[%clk 0:02:14.2]} 15... Re8 {[%clk 0:01:04.8]} 16. Qf3 {[%clk 0:01:59.6]} 16...
Nf6 {[%clk 0:00:57.6]} 17. Rhe1 {[%clk 0:01:58.4]} 17... Nxd5 {[%clk 0:00:43.9]}
18. Bxd5 {[%clk 0:01:59.3]} 18... Qb6 {[%clk 0:00:43.9]} 19. Bxf7 {[%clk
0:01:30.9]} 19... Bxf7 {[%clk 0:00:37.4]} 20. Qxf7 {[%clk 0:01:31.8]} 20... Qh6+
{[%clk 0:00:36.4]} 21. Kb1 {[%clk 0:01:29.3]} 21... Ref8 {[%clk 0:00:32.4]} 22.
Qc4 {[%clk 0:01:05.2]} 22... Rxf2 {[%clk 0:00:16.4]} 23. Qxd4 {[%clk 0:01:04.3]}
23... Qb6 {[%clk 0:00:09.6]} 24. Qxg7 {[%clk 0:00:58.2]} 24... Rff8 {[%clk
0:00:06.2]} 25. Re7 {[%clk 0:00:52.6]} 25... Rfg8 {[%clk 0:00:02.7]} 26. Qe5
{[%clk 0:00:50.4]} 26... Rf8 {[%clk 0:00:02]} 27. a3 {[%clk 0:00:46.5]} 1-0

[Event "Late-Titled-Tuesday-Blitz-June-04-2024"]
[Site "Chess.com"]
[Date "2024.06.04"]
[Round "2"]
[White "Josetricks"]
[Black "NikolaGry"]
[Result "1-0"]
[WhiteElo "2430"]
[BlackElo "2693"]
[TimeControl "180+1"]
[EndTime "14:16:43 PDT"]
[Termination "Josetricks won by checkmate"]

1. d4 {[%clk 0:03:00.9]} 1... d5 {[%clk 0:02:59.6]} 2. Nc3 {[%clk 0:03:01.8]}
2... Nf6 {[%clk 0:02:58.1]} 3. Bf4 {[%clk 0:03:00.6]} 3... Bf5 {[%clk
0:02:53.7]} 4. e3 {[%clk 0:02:58.3]} 4... a6 {[%clk 0:02:51.4]} 5. Nf3 {[%clk
0:02:57.9]} 5... e6 {[%clk 0:02:50.2]} 6. Ne5 {[%clk 0:02:57.7]} 6... h6 {[%clk
0:02:44.8]} 7. g4 {[%clk 0:02:55]} 7... Bh7 {[%clk 0:02:42.4]} 8. h4 {[%clk
0:02:52]} 8... Nfd7 {[%clk 0:02:41.4]} 9. Nxd7 {[%clk 0:02:49]} 9... Nxd7 {[%clk
0:02:40.6]} 10. Bd3 {[%clk 0:02:48.1]} 10... Bxd3 {[%clk 0:02:38.3]} 11. Qxd3
{[%clk 0:02:49]} 11... c5 {[%clk 0:02:34.3]} 12. O-O-O {[%clk 0:02:46.4]} 12...
c4 {[%clk 0:02:26.7]} 13. Qe2 {[%clk 0:02:43.9]} 13... Bb4 {[%clk 0:02:20.1]}
14. e4 {[%clk 0:02:38.5]} 14... Nb6 {[%clk 0:02:06.1]} 15. exd5 {[%clk
0:02:25.5]} 15... Bxc3 {[%clk 0:01:32.4]} 16. dxe6 {[%clk 0:02:21.1]} 16... Bb4
{[%clk 0:01:31.7]} 17. exf7+ {[%clk 0:02:18.7]} 17... Kxf7 {[%clk 0:01:31.3]}
18. g5 {[%clk 0:02:09.4]} 18... c3 {[%clk 0:01:26.9]} 19. gxh6 {[%clk
0:02:02.3]} 19... cxb2+ {[%clk 0:01:21.3]} 20. Kb1 {[%clk 0:02:00.4]} 20... Qd5
{[%clk 0:01:02.3]} 21. hxg7 {[%clk 0:01:53.3]} 21... Rhc8 {[%clk 0:00:50.2]} 22.
Rhg1 {[%clk 0:01:47.4]} 22... Nc4 {[%clk 0:00:47.9]} 23. Rd3 {[%clk 0:01:29.4]}
23... Re8 {[%clk 0:00:37.1]} 24. Qg4 {[%clk 0:01:25.7]} 24... Re1+ {[%clk
0:00:31.8]} 25. Rxe1 {[%clk 0:01:24.3]} 25... Bxe1 {[%clk 0:00:31.2]} 26. Bb8
{[%clk 0:00:49.8]} 26... Rxb8 {[%clk 0:00:16.6]} 27. Qf4+ {[%clk 0:00:46.8]}
27... Kxg7 {[%clk 0:00:12.1]} 28. Rg3+ {[%clk 0:00:44.6]} 28... Kh7 {[%clk
0:00:12]} 29. Qc7+ {[%clk 0:00:40.8]} 29... Kh6 {[%clk 0:00:11.9]} 30. Qg7+
{[%clk 0:00:38.1]} 30... Kh5 {[%clk 0:00:11]} 31. Qg6+ {[%clk 0:00:38.1]} 31...
Kxh4 {[%clk 0:00:10.1]} 32. Qg4# {[%clk 0:00:38.7]} 1-0

[Event "Late-Titled-Tuesday-Blitz-June-04-2024"]
[Site "Chess.com"]
[Date "2024.06.04"]
[Round "2"]
[White "Larax"]
[Black "Mariia89"]
[Result "1-0"]
[WhiteElo "2500"]
[BlackElo "2244"]
[TimeControl "180+1"]
[EndTime "14:16:45 PDT"]
[Termination "Larax won on time"]

1. e4 {[%clk 0:03:00.9]} 1... c6 {[%clk 0:02:58.1]} 2. d4 {[%clk 0:03:00.3]}
2... d5 {[%clk 0:02:59]} 3. e5 {[%clk 0:03:00.5]} 3... Bf5 {[%clk 0:02:59.5]} 4.
Nf3 {[%clk 0:03:00.6]} 4... e6 {[%clk 0:02:59.5]} 5. Be2 {[%clk 0:03:00.8]} 5...
c5 {[%clk 0:02:59.8]} 6. O-O {[%clk 0:03:00]} 6... Nc6 {[%clk 0:03:00.5]} 7. Be3
{[%clk 0:02:58.5]} 7... Qb6 {[%clk 0:03:00]} 8. b3 {[%clk 0:02:15]} 8... h5
{[%clk 0:02:03.6]} 9. Nc3 {[%clk 0:02:13.6]} 9... cxd4 {[%clk 0:02:00.9]} 10.
Nxd4 {[%clk 0:02:12.3]} 10... Qb4 {[%clk 0:01:49.6]} 11. Ncb5 {[%clk 0:01:53.7]}
11... Rc8 {[%clk 0:01:20.8]} 12. Nxf5 {[%clk 0:01:46.5]} 12... exf5 {[%clk
0:01:18.3]} 13. Qxd5 {[%clk 0:01:42.6]} 13... Be7 {[%clk 0:00:59]} 14. Qd2
{[%clk 0:01:31.5]} 14... Qxd2 {[%clk 0:00:55.3]} 15. Bxd2 {[%clk 0:01:30.3]}
15... Nxe5 {[%clk 0:00:54.3]} 16. c4 {[%clk 0:01:28.3]} 16... a6 {[%clk
0:00:53.8]} 17. Nc3 {[%clk 0:01:28.3]} 17... Nf6 {[%clk 0:00:52.8]} 18. Bf4
{[%clk 0:01:24.5]} 18... Nc6 {[%clk 0:00:51.4]} 19. Rad1 {[%clk 0:01:23.5]}
19... O-O {[%clk 0:00:50.1]} 20. Nd5 {[%clk 0:01:21.4]} 20... Nxd5 {[%clk
0:00:41.5]} 21. cxd5 {[%clk 0:01:20.1]} 21... Nb4 {[%clk 0:00:37.2]} 22. d6
{[%clk 0:01:16.2]} 22... Bd8 {[%clk 0:00:30.9]} 23. d7 {[%clk 0:01:00.2]} 23...
Rc2 {[%clk 0:00:28.7]} 24. Bf3 {[%clk 0:00:59.2]} 24... Nxa2 {[%clk 0:00:19.9]}
25. Bd6 {[%clk 0:00:57.9]} 25... Nc3 {[%clk 0:00:20]} 26. Rd3 {[%clk 0:00:58]}
26... b5 {[%clk 0:00:10.6]} 27. Bxf8 {[%clk 0:00:56.1]} 27... Kxf8 {[%clk
0:00:11.5]} 28. Re1 {[%clk 0:00:54.5]} 28... Ne4 {[%clk 0:00:11.7]} 29. g3
{[%clk 0:00:46.2]} 29... Nf6 {[%clk 0:00:02.4]} 30. Rde3 {[%clk 0:00:45.7]} 1-0

[Event "Late-Titled-Tuesday-Blitz-June-04-2024"]
[Site "Chess.com"]
[Date "2024.06.04"]
[Round "2"]
[White "xakevicius91"]
[Black "Onischuk_V"]
[Result "1-0"]
[WhiteElo "2569"]
[BlackElo "2846"]
[TimeControl "180+1"]
[EndTime "14:16:46 PDT"]
[Termination "xakevicius91 won by checkmate"]

1. e4 {[%clk 0:02:57.2]} 1... d6 {[%clk 0:03:00.3]} 2. d4 {[%clk 0:02:56.9]}
2... Nf6 {[%clk 0:03:00.9]} 3. Nc3 {[%clk 0:02:57.5]} 3... g6 {[%clk 0:03:01.5]}
4. Nf3 {[%clk 0:02:56.1]} 4... Bg7 {[%clk 0:03:01.6]} 5. Bg5 {[%clk 0:02:56.2]}
5... h6 {[%clk 0:02:57.5]} 6. Be3 {[%clk 0:02:54.5]} 6... O-O {[%clk 0:02:56.7]}
7. h3 {[%clk 0:02:54.5]} 7... d5 {[%clk 0:02:49.3]} 8. e5 {[%clk 0:02:51.8]}
8... Ne4 {[%clk 0:02:49.5]} 9. a4 {[%clk 0:02:40.4]} 9... c5 {[%clk 0:02:46.8]}
10. Bd3 {[%clk 0:02:32.2]} 10... Nxc3 {[%clk 0:02:44.9]} 11. bxc3 {[%clk
0:02:32.6]} 11... c4 {[%clk 0:02:41.7]} 12. Be2 {[%clk 0:02:31.2]} 12... Bf5
{[%clk 0:02:29.4]} 13. O-O {[%clk 0:02:27.1]} 13... Nc6 {[%clk 0:02:27.2]} 14.
Qb1 {[%clk 0:02:22]} 14... Rb8 {[%clk 0:02:10.6]} 15. Nh4 {[%clk 0:02:05.5]}
15... Bd7 {[%clk 0:01:38.5]} 16. Qb2 {[%clk 0:02:04.3]} 16... e6 {[%clk
0:01:36.8]} 17. Nf3 {[%clk 0:02:03.7]} 17... a6 {[%clk 0:01:34.7]} 18. Nh2
{[%clk 0:01:53.4]} 18... b5 {[%clk 0:01:29.9]} 19. axb5 {[%clk 0:01:53.4]} 19...
Rxb5 {[%clk 0:01:29]} 20. Qc1 {[%clk 0:01:52.5]} 20... Kh7 {[%clk 0:01:24.4]}
21. Rxa6 {[%clk 0:01:50.6]} 21... Ra5 {[%clk 0:01:13.2]} 22. Rxa5 {[%clk
0:01:47.4]} 22... Qxa5 {[%clk 0:01:13]} 23. Qd2 {[%clk 0:01:44.2]} 23... Rb8
{[%clk 0:00:57.4]} 24. Ng4 {[%clk 0:01:43]} 24... h5 {[%clk 0:00:57.2]} 25. Nh2
{[%clk 0:01:40.2]} 25... Rb2 {[%clk 0:00:52.1]} 26. g4 {[%clk 0:01:39.6]} 26...
Qa2 {[%clk 0:00:47.3]} 27. Bd1 {[%clk 0:01:38.3]} 27... hxg4 {[%clk 0:00:43.2]}
28. hxg4 {[%clk 0:01:37.8]} 28... Rb1 {[%clk 0:00:33.5]} 29. Kg2 {[%clk
0:01:35.5]} 29... Qa3 {[%clk 0:00:27.2]} 30. Nf3 {[%clk 0:01:32.7]} 30... Kg8
{[%clk 0:00:26.6]} 31. Rh1 {[%clk 0:01:30]} 31... Qf8 {[%clk 0:00:25.2]} 32. Ng5
{[%clk 0:01:26.2]} 32... Qe7 {[%clk 0:00:22.9]} 33. Nh7 {[%clk 0:01:19.3]} 33...
Nxe5 {[%clk 0:00:18.6]} 34. dxe5 {[%clk 0:01:17.7]} 34... Bxe5 {[%clk
0:00:18.8]} 35. Bd4 {[%clk 0:01:13.8]} 35... Bxd4 {[%clk 0:00:15.1]} 36. cxd4
{[%clk 0:01:14.1]} 36... e5 {[%clk 0:00:14.9]} 37. Qh6 {[%clk 0:01:11.3]} 37...
exd4 {[%clk 0:00:05.3]} 38. g5 {[%clk 0:01:04.6]} 38... Rb6 {[%clk 0:00:03.6]}
39. Nf6+ {[%clk 0:01:02.8]} 39... Rxf6 {[%clk 0:00:02.5]} 40. Qh8# {[%clk
0:01:02.6]} 1-0